bitfinex-derivatives/quotes_ETHF0:USTF0_20250502
["timestamp","ask_amount","ask_price","bid_price","bid_amount"]
[1746189305957,1.08179169,1828.7,1828.6,1.09334]
[1746189306153,1.08179169,1828.7,1828.6,6.09334]
[1746189307048,1.08179169,1828.7,1828.6,10.3245]
[1746189307253,1.08179169,1828.7,1828.6,5.3245]
[1746189307658,7.5361,1828.7,1828.6,5.3245]
[1746189308048,7.5361,1828.7,1828.5,3.696]
[1746189308254,3.2078,1828.6,1828.5,3.696]
[1746189308463,3.2078,1828.6,1828.5,9.7894]
[1746189308660,1.08179169,1828.7,1828.6,1.09334]
[1746189308957,3.2078,1829.0,1828.9,1.09317]
[1746189309157,3.2078,1829.0,1828.9,4.78917]
[1746189309459,3.2078,1829.0,1828.9,3.696]
[1746189309958,3.2078,1829.0,1828.9,4.78917]
[1746189310164,4.32303098,1829.0,1828.9,9.78917]
[1746189310956,4.32303098,1829.0,1828.9,4.78917]
[1746189311157,7.87301049,1829.0,1828.9,3.696]
[1746189311360,1.09333,1828.7,1828.4,1.09344]
[1746189311562,3.2078,1828.5,1828.4,1.09344]
[1746189311759,1.09349,1828.4,1828.0,3.2078]
[1746189311967,3.2078,1828.2,1828.1,1.0936]
[1746189312661,4.34830145,1828.2,1828.0,3.696]
[1746189312858,4.64361951,1828.1,1828.0,2.99479409]
[1746189313059,10.28471951,1828.1,1828.0,2.99479409]
[1746189313366,3.2078,1828.0,1827.1,0.02]
[1746189313564,10.6411,1828.1,1826.0,5.47433]
[1746189313565,6.75777422,1827.2,1826.4,2.73662]
[1746189313757,6.75777422,1827.2,1826.0,11.84033]
[1746189313758,3.54997422,1826.7,1826.6,1.09454]
[1746189314059,3.54997422,1826.7,1826.1,2.73711]
[1746189314060,3.54997422,1826.5,1826.1,2.73711]
[1746189314256,3.2078,1827.0,1826.2,3.2078]
[1746189314458,3.54997422,1826.8,1826.7,1.09448]
[1746189314859,6.75777422,1826.8,1826.7,1.09448]
[1746189315258,6.75777422,1826.8,1826.7,4.79048]
[1746189316563,3.2078,1826.8,1826.7,4.79048]
[1746189316767,3.2078,1826.8,1826.7,9.79048]
[1746189317667,1.12562689,1826.9,1826.8,1.09442]
[1746189317856,3.2078,1827.8,1826.8,8.2078]
[1746189318055,3.54997422,1827.5,1827.4,1.09406]
[1746189318461,8.8812,1827.8,1827.7,1.09388]
[1746189318462,5.6734,1827.8,1827.7,1.09388]
[1746189318763,10.30790833,1827.8,1827.7,1.09388]
[1746189319063,1.08453411,1827.8,1827.7,4.30168]
[1746189319267,1.08453411,1827.8,1827.7,12.99768]
[1746189319461,4.11e-06,1827.8,1827.7,4.78988]
[1746189320264,4.11e-06,1827.8,1827.7,12.99768]
[1746189320466,5.6734,1828.3,1828.2,1.09358]
[1746189320867,9.22337422,1828.3,1828.2,1.09358]
[1746189321174,3.2078,1827.7,1826.0,3.2078]
[1746189321468,3.54997422,1826.1,1826.0,0.02]
[1746189321667,3.54997422,1826.1,1825.4,3.2078]
[1746189321971,2.73647,1826.6,1825.1,2.7386]
[1746189321972,3.54997422,1826.0,1825.2,2.73846]
[1746189322269,9.25567422,1826.0,1825.4,3.696]
[1746189322475,5.7057,1826.0,1825.9,1.09496]
[1746189322769,1.19242703,1826.1,1825.5,9.10501]
[1746189322973,1.19242703,1826.1,1826.0,1.0949]
[1746189323174,1.19242703,1826.1,1826.0,4.7909]
[1746189323372,1.19242703,1826.1,1826.0,9.7909]
[1746189323774,1.19242703,1826.1,1826.0,4.7909]
[1746189324287,1e-08,1826.1,1826.0,9.7909]
[1746189324479,3.2078,1827.1,1826.0,8.81006967]
[1746189324675,6.75777422,1827.1,1826.8,1.09437]
[1746189324978,3.54997422,1827.0,1826.7,3.2078]
[1746189325180,3.54997422,1827.0,1826.8,4.7904]
[1746189325476,3.2078,1827.1,1827.0,1.0943]
[1746189326068,3.2078,1827.4,1827.0,11.9038]
[1746189326274,3.2078,1827.4,1827.2,1.09415]
[1746189326577,3.2078,1827.4,1827.3,1.09412]
[1746189326778,6.0532,1827.5,1827.3,1.09412]
[1746189327076,6.0532,1827.5,1827.4,1.09406]
[1746189327274,3.2078,1827.6,1827.5,1.094]
[1746189327674,3.2078,1827.6,1827.4,7.16443]
[1746189327873,1.01878448,1827.5,1827.4,7.16443]
[1746189328066,1.01878448,1827.5,1827.4,10.86043]
[1746189328772,4.48e-06,1827.5,1827.4,15.86043]
[1746189329072,4.48e-06,1827.5,1827.4,19.06823]
[1746189329275,7.23286145,1828.3,1828.2,1.09358]
[1746189329476,7.23286145,1828.3,1828.2,4.30138]
[1746189330071,5.5174,1828.5,1828.4,1.09346]
[1746189330267,3.54997422,1828.4,1828.2,3.696]
[1746189330474,5.6643,1828.3,1828.2,4.78958]
[1746189330781,3.2078,1828.6,1828.5,1.0934]
[1746189330968,5.6643,1828.6,1828.5,1.0934]
[1746189331172,3.2078,1828.7,1828.6,1.09331]
[1746189331367,6.75777422,1828.8,1828.7,1.09329]
[1746189331576,4.64331422,1828.6,1828.5,3.696]
[1746189331879,4.64331422,1828.6,1828.5,4.7894]
[1746189332081,3.54997422,1828.6,1828.5,4.7894]
[1746189332575,5.6643,1828.7,1828.5,3.696]
[1746189332775,3.54997422,1828.6,1828.5,4.7894]
[1746189333079,9.21427422,1828.7,1828.6,1.09334]
[1746189333374,1.19161188,1828.6,1828.2,2.73391]
[1746189333577,1.19161188,1828.6,1828.5,1.0934]
[1746189334182,1.19161188,1828.6,1828.5,15.9014]
[1746189334382,9.1187,1829.1,1829.0,1.09311]
[1746189334676,6.94665835,1829.1,1829.0,1.09311]
[1746189334868,1.49272115,1829.1,1829.0,1.09311]
[1746189335073,1.49272115,1829.1,1829.0,4.78911]
[1746189335269,1.03575835,1829.1,1829.0,4.78911]
[1746189335673,1.03575835,1829.1,1829.0,1.09311]
[1746189336178,1.03575835,1829.1,1829.0,4.78911]
[1746189337178,8.88658257,1829.1,1829.0,3.696]
[1746189337384,5.67878257,1829.1,1829.0,3.696]
[1746189337569,5.0424582,1829.1,1829.0,4.78911]
[1746189337970,4.58573257,1829.1,1829.0,4.78911]
[1746189338174,1.03575835,1829.1,1829.0,4.78911]
[1746189338373,5.67878257,1829.1,1829.0,4.78911]
[1746189338570,7.79353257,1829.1,1829.0,4.78911]
[1746189338782,4.58573257,1829.1,1829.0,4.78911]
[1746189338977,1.03575835,1829.1,1829.0,4.78911]
[1746189340581,8.35e-06,1829.1,1829.0,9.78911]
[1746189340775,8.35e-06,1829.1,1829.0,15.66711]
[1746189340983,8.35e-06,1829.1,1829.0,10.66711]
[1746189341282,8.35e-06,1829.1,1829.0,10.68711]
[1746189341478,3.54998257,1829.1,1829.0,4.80911]
[1746189341683,12.85083257,1829.1,1829.0,3.696]
[1746189341885,1.09329,1828.7,1828.6,1.10640831]
[1746189342087,3.54997422,1828.7,1828.6,1.10642831]
[1746189342389,6.75777422,1828.7,1828.6,1.10642831]
[1746189342888,6.4132,1828.8,1828.7,1.09329]
[1746189343084,9.96317422,1828.8,1828.7,4.78929]
[1746189344084,6.4132,1828.8,1828.7,4.78929]
[1746189344285,8.35e-06,1829.1,1829.0,1.09311]
[1746189344589,3.54998257,1829.1,1829.0,1.09311]
[1746189344784,1.09313,1829.0,1828.9,1.09312]
[1746189345089,6.4132,1829.0,1828.9,1.09312]
[1746189345284,9.96317422,1829.0,1828.9,1.09312]
[1746189345889,6.4132,1829.0,1828.9,1.09312]
[1746189346189,6.4132,1829.0,1828.9,4.78912]
[1746189346781,8.35e-06,1829.1,1829.0,1.09311]
[1746189346982,8.35e-06,1829.1,1829.0,7.90511]
[1746189347182,8.35e-06,1829.1,1829.0,11.60111]
[1746189350584,8.35e-06,1829.1,1829.0,16.60111]
[1746189350786,9.5215,1829.4,1829.1,1.09305]
[1746189351090,1.00136018,1829.4,1829.3,1.09293]
[1746189351290,1.8e-07,1829.4,1829.3,1.09293]
[1746189352090,1.8e-07,1829.4,1829.3,4.78893]
[1746189352395,3.5499744,1829.4,1829.3,4.78893]
[1746189352787,10.0161744,1829.4,1829.3,4.78893]
[1746189352995,10.47336548,1829.4,1829.3,4.78893]
[1746189356590,11.56623548,1829.4,1829.3,4.78893]
[1746189356782,19.77403548,1829.4,1829.3,3.696]
[1746189357091,1.0932,1828.9,1828.8,1.09316]
[1746189357294,3.69510095,1828.9,1828.8,1.09316]
[1746189357595,3.05909203,1828.9,1828.8,1.09316]
[1746189357795,0.45719108,1828.9,1828.8,4.30096]
[1746189358288,0.45719108,1828.9,1828.8,7.99696]
[1746189358696,1.08e-06,1828.9,1828.8,18.87196]
[1746189358894,1.08e-06,1828.9,1828.8,15.66416]
[1746189359092,6.4213,1829.3,1829.2,1.09299]
[1746189359696,9.02320095,1829.3,1829.2,1.09299]
[1746189360198,6.4213,1829.3,1829.2,4.78899]
[1746189360395,9.02320095,1829.3,1829.2,4.78899]
[1746189360594,10.11613095,1829.3,1829.2,4.78899]
[1746189360891,15.72203,1829.3,1829.2,1.09409905]
[1746189361092,1.09323,1828.8,1828.7,1.09327]
[1746189361690,1.09321,1828.9,1828.8,1.09318]
[1746189361885,1.09329,1828.7,1828.6,4.31418831]
[1746189362090,3.81414922,1828.9,1828.6,4.31418831]
[1746189362091,1.09329,1828.8,1828.7,1.09325]
[1746189362385,1.09329,1828.7,1828.6,1.10638831]
[1746189363198,4.30109,1828.7,1828.6,0.01308831]
[1746189363394,1.09329,1828.7,1828.6,0.01308831]
[1746189363586,9.30109,1828.7,1828.6,0.01308831]
[1746189363791,1.09384,1827.8,1827.6,3.2078]
[1746189363991,1.09388,1827.7,1827.6,3.2078]
[1746189364197,3.2078,1827.7,1827.5,3.696]
[1746189364389,5.29501883,1827.6,1827.5,3.696]
[1746189364889,10.29501883,1827.6,1827.5,3.696]
[1746189365193,1.09425,1827.1,1826.8,4.3022]
[1746189365394,3.2078,1827.3,1826.8,3.2078]
[1746189365697,4.30185,1827.5,1826.8,2.73602]
[1746189365890,3.2078,1827.5,1826.9,6.2561]
[1746189366093,3.2078,1827.2,1826.9,9.9521]
[1746189366287,4.30201,1827.2,1826.9,4.79034]
[1746189366491,1.09426,1827.1,1826.9,3.696]
[1746189366686,3.2078,1827.2,1826.9,4.79036]
[1746189366687,4.30203,1827.2,1826.9,4.79036]
[1746189366899,3.2078,1827.2,1826.9,3.696]
[1746189367289,3.2078,1827.2,1826.9,4.79031]
[1746189367493,3.2078,1827.2,1827.1,1.09424]
[1746189367700,1.1673688,1827.2,1827.1,1.09424]
[1746189368999,1.1673688,1827.2,1827.1,6.09424]
[1746189369192,1.1673688,1827.2,1827.1,1.09424]
[1746189370197,7.4495688,1827.2,1827.0,4.79027]
[1746189370397,7.4495688,1827.2,1827.1,1.09424]
[1746189371798,1e-05,1828.0,1827.9,1.09376]
[1746189372099,11.68878755,1828.4,1828.3,1.09352]
[1746189372299,5.40658755,1828.4,1828.3,4.30132]
[1746189372496,5.40658755,1828.4,1828.3,1.09352]
[1746189372897,12.49708755,1828.4,1828.3,1.09352]
[1746189373096,12.49708755,1828.4,1828.3,4.78952]
[1746189373295,7.0905,1828.4,1828.3,4.78952]
[1746189374498,7.0905,1828.4,1828.3,4.89891123]
[1746189375001,7.0905,1828.4,1828.3,3.80539123]
[1746189375199,11.39176,1828.4,1828.3,4.89891123]
[1746189375400,16.39176,1828.4,1828.3,3.80539123]
[1746189375599,16.39176,1828.4,1828.3,4.89891123]
[1746189375798,16.39176,1828.4,1828.3,3.80539123]
[1746189375990,1.09376,1827.9,1827.8,3.2078]
[1746189376195,3.2078,1828.1,1827.8,4.78978]
[1746189376395,4.30156,1827.9,1827.8,3.696]
[1746189377199,9.75352607,1827.9,1827.8,3.696]
[1746189377804,10.35830574,1827.9,1827.8,3.696]
[1746189378197,9.71648286,1827.9,1827.8,3.696]
[1746189378399,1.05674574,1827.9,1827.8,4.78982]
[1746189378602,1.05674574,1827.9,1827.8,9.78982]
[1746189378800,3.2078,1828.3,1828.2,1.09358]
[1746189379001,1.09358,1828.2,1827.8,6.43052]
[1746189379200,7.2099,1828.2,1827.8,2.73453]
[1746189379400,3.2078,1828.0,1827.6,9.97086]
[1746189379600,3.2078,1828.0,1827.9,1.09376]
[1746189379804,8.30352,1828.2,1828.0,1.09364]
[1746189380099,5.42601143,1828.3,1828.1,1.09361]
[1746189380299,1.09363,1828.2,1828.0,4.78968]
[1746189380608,1.09363,1828.2,1828.1,1.09364]
[1746189380812,4.33245143,1828.3,1828.2,1.09358]
[1746189381105,5.42597143,1828.3,1828.2,3.696]
[1746189381305,10.42597143,1828.3,1828.2,3.696]
[1746189382008,10.86914142,1828.3,1828.2,2.63925426]
[1746189382204,1.09386,1827.8,1827.6,7.93434]
[1746189382405,5.40658755,1828.9,1827.7,5.94252]
[1746189382607,1.09332,1828.7,1828.1,5.94177]
[1746189382907,1.01472857,1828.6,1828.5,1.09339]
[1746189383410,2.10806857,1828.6,1828.5,3.696]
[1746189383612,10.31586857,1828.6,1828.5,3.696]
[1746189383810,7.10806857,1828.6,1828.5,3.696]
[1746189384407,2.10806857,1828.6,1828.5,3.696]
[1746189384710,2.55204523,1828.6,1828.5,3.696]
[1746189384910,10.75984523,1828.6,1828.5,3.696]
[1746189386111,9.66650523,1828.6,1827.9,1.09373]
[1746189386311,3.2078,1828.2,1827.8,7.0167]
[1746189386610,3.2078,1828.2,1828.0,1.09367]
[1746189387008,1.06538401,1828.1,1827.8,7.0167]
[1746189387313,2.15902401,1828.1,1828.0,3.696]
[1746189387511,1.06538401,1828.1,1828.0,3.696]
[1746189387711,7.15902401,1828.1,1828.0,3.696]
[1746189388012,1.51005125,1828.1,1828.0,3.696]
[1746189388506,1.06538401,1828.1,1828.0,4.7897]
[1746189389415,1.06538401,1828.1,1828.0,9.7897]
[1746189389803,1.06538401,1828.1,1828.0,17.0574]
[1746189390608,1.06538401,1828.1,1828.0,12.0574]
[1746189390808,1.06538401,1828.1,1828.0,17.0574]
[1746189391817,3.2078,1828.5,1828.4,1.09346]
[1746189392114,5.46837827,1828.5,1828.4,3.80538525]
[1746189392515,10.46837827,1828.5,1828.4,3.80538525]
[1746189392916,10.91406911,1828.5,1828.4,3.80538525]
[1746189393812,5.91406911,1828.5,1828.4,3.80538525]
[1746189394313,4.82061911,1828.5,1828.4,3.80538525]
[1746189394514,4.82061911,1828.5,1828.4,4.89884525]
[1746189394816,1.61281911,1828.5,1828.4,1.09346]
[1746189395002,1.61281911,1828.5,1828.4,6.09346]
[1746189395208,1.09315,1829.0,1828.4,6.09346]
[1746189395209,1.09317,1828.9,1828.8,1.09318]
[1746189395410,1.14800193,1829.0,1828.7,1.09324]
[1746189395610,1.14800193,1829.0,1828.9,1.09317]
[1746189396115,1e-08,1829.0,1828.9,9.78917]
[1746189396310,1e-08,1829.0,1828.9,19.72967]
[1746189396610,1e-08,1829.0,1828.9,14.72967]
[1746189397311,1e-08,1829.0,1828.9,7.33849046]
[1746189397518,1e-08,1829.0,1828.9,8.43166046]
[1746189398215,1e-08,1829.0,1828.9,11.63946046]
[1746189398809,1.09311001,1829.0,1828.9,7.33849046]
[1746189399020,1.09311001,1829.0,1828.9,8.43166046]
[1746189399718,1e-08,1829.0,1828.9,8.43166046]
[1746189400123,1e-08,1829.0,1828.9,11.63946046]
[1746189402320,1e-08,1829.0,1828.9,16.63946046]
[1746189402815,0.75005,1829.7,1829.4,1.09281]
[1746189402816,3.2078,1829.6,1829.4,1.09281]
[1746189403016,4.30059,1829.6,1829.5,1.09281]
[1746189403615,4.20794736,1829.6,1829.5,7.99401]
[1746189403822,1.00014736,1829.6,1829.5,7.99401]
[1746189404221,1.00014736,1829.6,1829.5,11.69001]
[1746189405316,3.2078,1829.9,1829.8,1.09263]
[1746189405517,5.40658755,1830.0,1829.9,1.09257]
[1746189406237,1.09263,1829.8,1829.7,7.4053]
[1746189406420,8.3247,1829.9,1829.8,1.09258]
[1746189407220,7.2321,1829.9,1829.8,4.78858]
[1746189407521,1.09257,1829.9,1829.8,4.78858]
[1746189408323,7.2321,1830.1,1829.8,3.696]
[1746189408624,1.09256,1830.0,1829.8,3.696]
[1746189408821,8.32458,1830.1,1829.8,3.696]
[1746189409123,4.30024,1830.2,1830.1,1.09245]
[1746189409427,1.09251,1830.0,1829.9,8.03694]
[1746189409719,3.2078,1830.0,1829.8,3.696]
[1746189409918,7.86067,1829.9,1829.8,3.696]
[1746189410317,13.30062204,1829.9,1829.8,3.696]
[1746189410520,1.09285,1829.5,1829.4,1.09287]
[1746189411125,1.09285,1829.5,1829.4,4.78887]
[1746189411318,5.34719376,1829.5,1829.4,3.696]
[1746189411519,10.78711076,1829.5,1829.4,1.81559761]
[1746189412525,7.57931076,1829.5,1829.4,1.81559761]
[1746189412914,10.78711076,1829.5,1829.4,1.81559761]
[1746189413627,4.69426076,1829.5,1829.4,1.81559761]
[1746189413926,2.57927076,1829.5,1829.4,1.81559761]
[1746189414127,1.48646076,1829.5,1829.4,1.81559761]
[1746189414420,1.48646076,1829.5,1829.4,2.90846761]
[1746189414627,1.04654376,1829.5,1829.4,7.90846761]
[1746189415225,7.81537,1830.0,1829.8,1.09258]
[1746189415421,6.7228,1830.0,1829.9,7.79877]
[1746189415624,7.81531,1830.0,1829.9,7.79877]
[1746189415821,6.7228,1830.0,1829.9,7.79877]
[1746189416019,7.81531,1830.0,1829.9,1.09257]
[1746189416218,7.83244621,1830.0,1829.9,4.78857]
[1746189416419,7.83244621,1830.0,1829.9,3.80529558]
[1746189416420,8.92495621,1830.0,1829.9,3.80529558]
[1746189416619,12.13275621,1830.0,1829.9,3.80529558]
[1746189416828,17.57316895,1830.0,1829.9,2.75875182]
[1746189417125,17.57316895,1830.0,1829.9,0.10929558]
[1746189418928,12.57316895,1830.0,1829.9,0.10929558]
[1746189419118,12.57316895,1830.0,1829.9,3.80529558]
[1746189420724,17.57316895,1830.0,1829.9,3.80529558]
[1746189421125,12.57316895,1830.0,1829.9,3.80529558]
[1746189421926,12.57316895,1830.0,1829.9,4.89786558]
[1746189422231,11.48065895,1830.0,1829.9,4.89786558]
[1746189422428,4.75785895,1830.0,1829.9,4.89786558]
[1746189422725,1.10964621,1830.0,1829.9,13.10566558]
[1746189423324,5.40658755,1830.5,1829.9,22.91577558]
[1746189423525,6.53867051,1830.5,1830.4,1.09227]
[1746189423723,6.53867051,1830.5,1830.3,3.2078]
[1746189423724,6.98071075,1830.5,1830.3,4.30012]
[1746189423928,8.07292075,1830.5,1830.4,0.10926573]
[1746189424326,8.07292075,1830.5,1830.4,3.80526573]
[1746189424628,15.03646219,1830.5,1830.4,3.80526573]
[1746189425632,13.94425219,1830.5,1830.4,4.89753573]
[1746189425833,8.53766464,1830.5,1830.4,4.89753573]
[1746189426132,9.62987464,1830.5,1830.4,3.80526573]
[1746189427124,8.53766464,1830.5,1830.4,4.89753573]
[1746189427425,1.57436464,1830.5,1830.4,4.89753573]
[1746189428031,1.57436464,1830.5,1830.4,11.68473573]
[1746189428237,1.57436464,1830.5,1830.4,7.98873573]
[1746189428427,1.13208296,1830.5,1830.4,7.98873573]
[1746189428626,1.09199,1830.9,1830.8,1.09203]
[1746189428933,1.55271677,1830.9,1830.8,1.09203]
[1746189429123,1.09207,1830.8,1830.7,1.09205]
[1746189429323,1.09207,1830.8,1830.7,6.7872]
[1746189429531,1.09219,1830.6,1830.4,0.10926573]
[1746189429725,7.2124,1830.7,1830.6,1.09215]
[1746189430223,0.44197237,1830.7,1830.6,1.09215]
[1746189430624,1.09208,1830.8,1830.7,1.09209]
[1746189430828,1.09212,1830.7,1830.6,1.0921]
[1746189431029,1.09208,1830.8,1830.6,1.09212]
[1746189431233,14.88648,1830.8,1830.7,0.10924782]
[1746189431928,11.02845154,1830.8,1830.7,0.10924782]
[1746189432130,0.44185154,1830.8,1830.7,1.20133782]
[1746189432435,4.80650221,1830.9,1830.8,1.09203]
[1746189432635,4.80650221,1830.9,1830.8,8.20713]
[1746189433223,7.7058,1831.3,1831.2,1.09179]
[1746189433423,3.2078,1831.4,1831.3,1.09173]
[1746189433629,3.60997573,1831.6,1831.5,1.09161]
[1746189433925,3.60997573,1831.6,1831.5,4.29941]
[1746189434932,3.60997573,1831.6,1831.5,9.29941]
[1746189435133,7.23286145,1831.8,1831.5,9.29941]
[1746189435134,5.5698261,1831.8,1831.7,1.09149]
[1746189435332,6.75668732,1831.8,1831.7,1.09149]
[1746189436033,6.75668732,1831.8,1831.7,16.81449]
[1746189436231,9.05016301,1832.0,1831.9,1.09138]
[1746189436430,5.68016301,1832.0,1831.9,4.31918]
[1746189436630,2.62092301,1832.0,1831.9,9.31918]
[1746189436840,1.04955301,1832.0,1831.9,9.31918]
[1746189437036,1.09096,1832.6,1832.4,1.09103]
[1746189437233,7.6771,1832.6,1832.5,1.20016051]
[1746189437740,1.19568028,1832.6,1832.5,4.40796051]
[1746189438139,0.05947028,1832.6,1832.5,9.40796051]
[1746189438331,1.09066,1833.1,1833.0,1.09068]
[1746189438532,3.2078,1833.2,1833.1,1.09066]
[1746189438834,1.04955301,1833.3,1833.2,1.0906]
[1746189439141,10.8382599,1833.7,1833.6,1.09036]
[1746189439330,10.8382599,1833.7,1833.3,2.72636]
[1746189439331,10.8382599,1833.7,1833.3,6.9463]
[1746189439535,10.8382599,1833.7,1833.6,1.09036]
[1746189439735,10.8382599,1833.7,1833.6,4.29816]
[1746189439940,10.8382599,1833.7,1833.6,14.58016]
[1746189440134,12.60109591,1833.8,1833.7,1.0903]
[1746189440339,2.19427591,1833.8,1833.7,18.0623]
[1746189440640,19.75277734,1835.1,1833.7,34.77809549]
[1746189440838,19.75277734,1835.1,1835.0,1.08953]
[1746189441033,19.75277734,1835.1,1835.0,6.37153]
[1746189441535,20.87251512,1835.1,1835.0,6.37153]
[1746189441734,20.87251512,1835.1,1835.0,11.37153]
[1746189441735,1.11973778,1835.1,1835.0,11.37153]
[1746189442038,7.78e-06,1835.1,1835.0,11.37153]
[1746189442341,3.2078,1835.4,1834.7,3.2278]
[1746189442533,3.2078,1835.1,1834.7,3.2078]
[1746189442842,1.15130629,1835.0,1834.9,1.08956]
[1746189443045,1.15130629,1835.0,1834.9,4.29736]
[1746189443731,1.15130629,1835.0,1834.9,9.29736]
[1746189444036,1.15130629,1835.0,1834.9,11.52976]
[1746189444239,3.58158629,1835.0,1834.9,16.80776]
[1746189444541,3.58158629,1835.0,1834.9,21.80776]
[1746189444730,2.40970629,1835.0,1834.9,16.80776]
[1746189444931,2.40970629,1835.0,1834.9,21.80776]
[1746189445335,0.98330764,1835.5,1835.4,1.08925]
[1746189445533,0.98330764,1835.5,1835.4,4.29705]
[1746189445938,7.64e-06,1835.5,1835.4,4.29705]
[1746189446140,7.64e-06,1835.5,1835.4,11.52445]
[1746189446439,7.64e-06,1835.5,1835.4,16.54445]
[1746189446641,3.2078,1836.2,1835.4,10.4552]
[1746189446834,1.08896,1836.0,1835.7,1.08908]
[1746189447035,7.6476,1835.9,1835.8,0.10894432]
[1746189447342,9.83760129,1835.9,1835.8,0.10894432]
[1746189447638,2.72276,1835.8,1834.8,0.02]
[1746189447841,1.08951,1835.1,1834.8,1.08962]
[1746189448047,7.6476,1835.0,1834.5,7.2274]
[1746189448342,3.2078,1834.9,1834.0,3.2078]
[1746189448535,4.3988833,1834.4,1834.2,1.08998]
[1746189448730,7.1786,1834.3,1834.0,10.6975]
[1746189449146,7.1786,1834.3,1834.2,1.09001]
[1746189449338,10.8738,1834.3,1834.2,1.09001]
[1746189450243,7.1778,1834.3,1834.2,1.09001]
[1746189450543,3.2078,1835.0,1834.2,9.29781]
[1746189450845,18.4821,1835.2,1834.9,1.08957]
[1746189451038,1.01783391,1835.1,1834.5,3.2078]
[1746189451244,1.0897,1834.8,1834.5,4.2976]
[1746189451441,3.2078,1834.7,1834.3,5.273]
[1746189451743,3.2078,1834.7,1833.9,2.72542]
[1746189451744,4.29771,1834.4,1833.9,15.6654]
[1746189452053,3.2078,1834.4,1833.9,8.4808]
[1746189452343,1.09,1834.3,1833.9,8.4808]
[1746189452539,3.2078,1834.1,1833.7,0.02]
[1746189452740,7.6674,1834.0,1833.7,1.11026]
[1746189452939,1.09024,1833.8,1833.7,0.02]
[1746189453136,6.9038,1833.8,1833.5,1.09038]
[1746189453340,6.9038,1833.8,1833.3,3.2078]
[1746189453341,8.75773,1833.7,1833.3,3.2078]
[1746189453542,7.6674,1833.7,1833.3,3.2078]
[1746189453943,1.09039,1833.6,1833.4,1.09046]
[1746189454144,7.6674,1833.5,1833.4,1.09046]
[1746189454349,7.6674,1833.5,1833.3,3.2078]
[1746189454537,7.6674,1833.5,1833.1,3.2078]
[1746189454741,1.09056,1833.3,1833.1,1.09062]
[1746189454946,7.4779,1833.2,1833.1,1.09066]
[1746189455146,11.1739,1833.2,1833.1,1.09066]
[1746189457248,11.1739,1833.2,1832.9,10.3443]
[1746189457249,11.1739,1833.2,1832.9,4.29856]
[1746189457548,14.3817,1833.2,1832.7,3.2078]
[1746189457752,14.3817,1833.2,1832.7,1.09088]
[1746189457753,1.09082,1832.9,1832.7,1.09088]
[1746189458045,1.09077,1833.0,1832.8,1.09084]
[1746189458253,3.696,1832.9,1832.8,1.09084]
[1746189458753,4.85373774,1832.9,1832.8,1.09084]
[1746189459155,4.85373774,1832.9,1832.5,5.93534]
[1746189459365,8.06153774,1832.9,1832.8,1.09084]
[1746189459747,4.85373774,1832.9,1832.8,4.29864]
[1746189460053,3.56257342,1832.9,1832.8,9.29864]
[1746189460255,1.15773774,1832.9,1832.8,9.29864]
[1746189460644,7.74e-06,1832.9,1832.8,9.29864]
[1746189460954,3.2078,1833.4,1833.3,1.09054]
[1746189461159,6.9038,1833.4,1833.3,1.09054]
[1746189461648,4.85699699,1833.4,1833.3,4.29834]
[1746189462149,3.68511699,1833.4,1833.3,9.29834]
[1746189462354,6.99e-06,1833.4,1833.3,9.29834]
[1746189462554,1.0901,1834.1,1834.0,1.0901]
[1746189462853,8.2876,1834.3,1833.8,2.72562]
[1746189463153,1.09008,1834.1,1834.0,1.09007]
[1746189463348,2.10685611,1834.2,1834.1,1.09007]
[1746189463552,6.11e-06,1834.2,1834.1,4.29787]
[1746189464155,6.11e-06,1834.2,1834.1,1.09007]
[1746189464355,6.11e-06,1834.2,1834.1,4.29787]
[1746189465155,11.43744,1834.9,1834.2,2.72502]
[1746189465356,10.3478,1834.9,1834.4,2.72473]
[1746189465555,1.12940737,1834.8,1834.6,1.08973]
[1746189465853,1.12940737,1834.8,1834.7,1.08971]
[1746189466248,5.91506737,1834.8,1834.6,1.08973]
[1746189466456,5.91507737,1834.8,1834.7,0.10900964]
[1746189466654,14.12287737,1834.8,1834.7,0.10900964]
[1746189467154,13.03320737,1834.8,1834.3,3.2078]
[1746189467359,1.0899,1834.4,1834.3,0.10903341]
[1746189467549,3.2078,1834.5,1834.4,1.08989]
[1746189467856,4.29766,1834.5,1834.0,2.72527]
[1746189468054,3.2078,1834.5,1834.4,1.08989]
[1746189468256,3.696,1834.5,1834.4,1.08989]
[1746189469259,6.16945,1834.9,1834.7,1.08968]
[1746189469459,3.2078,1835.1,1834.5,5.9323]
[1746189469663,1.08956,1835.0,1834.6,2.72443]
[1746189469852,4.29732,1835.1,1834.9,1.08956]
[1746189470058,1.08954,1835.0,1834.6,2.72443]
[1746189470255,3.2078,1834.9,1834.8,1.08962]
[1746189470557,1.08953,1835.0,1834.9,1.08957]
[1746189470860,7.9933,1835.1,1835.0,1.08953]
[1746189471058,6.9038,1835.1,1834.7,2.72423]
[1746189471354,6.9038,1835.1,1834.6,2.72443]
[1746189471355,4.78553,1835.0,1834.6,2.72443]
[1746189471654,3.696,1835.0,1834.9,1.08959]
[1746189473557,2.43889036,1835.0,1834.9,6.08959]
[1746189473857,3.6e-07,1835.0,1834.9,18.87599]
[1746189474257,1.0892,1835.6,1835.5,1.08921]
[1746189474451,1.08926,1835.5,1835.4,1.08926]
[1746189474863,1.08911,1835.8,1835.7,1.0891]
[1746189475159,3.696,1835.8,1835.2,13.45067]
[1746189475354,3.696,1835.8,1835.4,3.2078]
[1746189475661,1.08912,1835.7,1835.6,1.08918]
[1746189475860,4.78508,1835.8,1835.7,1.08912]
[1746189476056,3.696,1835.8,1835.7,1.08912]
[1746189476259,3.696,1835.8,1835.4,5.44648]
[1746189476260,3.2078,1835.0,1833.3,3.2078]
[1746189476557,2.72473,1834.4,1833.6,3.2078]
[1746189476853,12.19778,1834.3,1833.3,0.10909289]
[1746189477056,3.2078,1833.7,1833.3,0.10909289]